[Event "4th Baskent University Open 2019"]
[Site "Ankara"]
[Date "2019.06.19"]
[Round "4"]
[White "Gulbeyaz, Emir"]
[Black "Can, Isik"]
[Result "1/2-1/2"]
[ECO "C54"]
[WhiteElo "2157"]
[BlackElo "2379"]
[Annotator "NA"]
[PlyCount "73"]
[EventDate "2019.06.18"]
[EventType "swiss"]
[EventCountry "TUR"]
[SourceTitle "playchess.com"]
[Source "ChessBase"]
[SourceQuality "1"]
[TimeControl "5400+30"]

1. e4 {[%emt 0:06:30]} e5 {[%emt 0:00:30]} 2. Nf3 {[%emt 0:00:30]} Nc6 {[%emt 0:00:00]} 3. Bc4 {[%emt 0:01:30]} Bc5 {[%emt 0:00:00]} 4. O-O {[%emt 0:00:30]} Nf6 {[%emt 0:01:30]} 5. c3 {[%emt 0:00:00]} Nxe4 {[%emt 0:01:30]} 6. d4 {[%emt 0:01:00]} d5 {[%emt 0:04:30]} 7. dxc5 {[%emt 0:03:30]} dxc4 {[%emt 0:00:00]} 8. Qe2 {[%emt 0:00:30]} Qd3 {[%emt 0:10:00]} 9. Re1 {[%emt 0:02:30]} Qxe2 {[%emt 0:14:30]} 10. Rxe2 {[%emt 0:00:00]} Bf5 {[%emt 0:01:30]} 11. Nbd2 {[%emt 0:15:00]} Nxd2 {[%emt 0:14:30]} 12. Nxe5 {[%emt 0:28:30]} O-O-O {[%emt 0:00:30]} 13. Nxc6 {[%emt 0:01:30]} Nb3 {[%emt 0:00:30]} 14. Nxd8 {[%emt 0:00:30]} Rxd8 {[%emt 0:00:30]} 15. Bg5 {[%emt 0:00:30]} Nxa1 {[%emt 0:00:00]} 16. Bxd8 {[%emt 0:00:30]} Kxd8 {[%emt 0:00:00]} 17. Re5 {[%emt 0:00:30]} Bd3 {[%emt 0:04:30]} 18. c6 {[%emt 0:01:30]} bxc6 {[%emt 0:01:30]} 19. f3 {[%emt 0:01:30]} f5 {[%emt 0:11:30]} 20. Kf2 {[%emt 0:03:30]} g5 {[%emt 0:06:30]} 21. g3 {[%emt 0:00:30]} Kd7 {[%emt 0:08:50]} 22. Ra5 {[%emt 0:03:30]} Kd6 {[%emt 0:02:15]} 23. Rxa7 {[%emt 0:00:30]} f4 {[%emt 0:01:02]} 24. Ra5 {[%emt 0:01:30]} c5 {[%emt 0:05:01]} 25. Ra6+ {[%emt 0:01:30]} c6 {[%emt 0:00:01]} 26. Ra7 {[%emt 0:00:00]} Nc2 {[%emt 0:00:10]} 27. gxf4 {[%emt 0:01:00]} gxf4 {[%emt 0:00:01]} 28. a4 {[%emt 0:00:30]} Ne3 {[%emt 0:00:59]} 29. a5 {[%emt 0:01:30]} Nd5 {[%emt 0:00:02]} 30. Rb7 {[%emt 0:02:30]} Nc7 {[%emt 0:00:11]} 31. Rb6 {[%emt 0:01:30]} Nd5 {[%emt 0:00:26]} 32. Rb7 {[%emt 0:01:30]} Nc7 {[%emt 0:00:08]} 33. Rb8 {[%emt 0:02:37]} Nb5 {[%emt 0:03:02]} 34. a6 {[%emt 0:02:21]} Kc7 {[%emt 0:00:30]} 35. Rb7+ {[%emt 0:00:30]} Kc8 {[%emt 0:00:00]} 36. Rf7 {[%emt 0:03:19]} Kb8 {[%emt 0:00:00]} 37. Rb7+ {[%emt 0:01:14]} 1/2-1/2

[Event "4th Baskent University Open 2019"]
[Site "Ankara"]
[Date "2019.06.19"]
[Round "4"]
[White "Buker, Muhittin"]
[Black "Babayev, Talib"]
[Result "0-1"]
[ECO "E98"]
[WhiteElo "1991"]
[BlackElo "2290"]
[Annotator "NA"]
[PlyCount "86"]
[EventDate "2019.06.18"]
[EventType "swiss"]
[EventCountry "TUR"]
[SourceTitle "playchess.com"]
[Source "ChessBase"]
[SourceQuality "1"]
[TimeControl "5400+30"]

1. d4 {[%emt 0:00:30]} Nf6 {[%emt 0:00:30]} 2. c4 {[%emt 0:00:30]} g6 {[%emt 0:00:30]} 3. Nc3 {[%emt 0:00:30]} Bg7 {[%emt 0:00:00]} 4. e4 {[%emt 0:00:00]} d6 {[%emt 0:00:00]} 5. Nf3 {[%emt 0:00:00]} O-O {[%emt 0:00:00]} 6. Be2 {[%emt 0:00:00]} e5 {[%emt 0:00:00]} 7. O-O {[%emt 0:00:00]} Nc6 {[%emt 0:00:30]} 8. d5 {[%emt 0:00:00]} Ne7 {[%emt 0:00:00]} 9. Ne1 {[%emt 0:00:00]} Nd7 {[%emt 0:00:00]} 10. Nd3 {[%emt 0:00:00]} f5 {[%emt 0:00:00]} 11. Bd2 {[%emt 0:00:00]} Kh8 {[%emt 0:00:00]} 12. a4 {[%emt 0:05:30]} a5 {[%emt 0:00:00]} 13. f3 {[%emt 0:00:00]} f4 {[%emt 0:00:00]} 14. Nb5 {[%emt 0:00:00]} g5 {[%emt 0:12:30]} 15. b4 {[%emt 0:01:30]} Ng6 {[%emt 0:00:30]} 16. c5 {[%emt 0:01:30]} Nf6 {[%emt 0:00:00]} 17. cxd6 {[%emt 0:00:30]} cxd6 {[%emt 0:00:00]} 18. Nf2 {[%emt 0:00:30]} Rf7 {[%emt 0:01:30]} 19. Qc2 {[%emt 0:06:30]} Bf8 {[%emt 0:01:30]} 20. Rfc1 {[%emt 0:00:30]} Ne8 {[%emt 0:00:00]} 21. bxa5 {[%emt 0:01:30]} h5 {[%emt 0:00:00]} 22. h3 {[%emt 0:00:00]} Rg7 {[%emt 0:00:00]} 23. Ra3 {[%emt 0:00:00]} Nh4 {[%emt 0:02:00]} 24. Rc3 {[%emt 0:11:30]} Bd7 {[%emt 0:00:30]} 25. Qd1 {[%emt 0:06:30]} Qxa5 {[%emt 0:03:30]} 26. Ra3 {[%emt 0:23:30]} Qd8 {[%emt 0:02:30]} 27. Bb4 {[%emt 0:00:30]} g4 {[%emt 0:12:30]} 28. hxg4 {[%emt 0:00:30]} Qg5 {[%emt 0:00:30]} 29. a5 {[%emt 0:02:30]} hxg4 {[%emt 0:05:30]} 30. fxg4 {[%emt 0:00:30]} f3 {[%emt 0:04:30]} 31. gxf3 {[%emt 0:01:30]} Qf4 {[%emt 0:00:30]} 32. Nh1 {[%emt 0:01:30]} Rh7 {[%emt 0:04:30]} 33. Rc2 {[%emt 0:05:30]} Ng2 {[%emt 0:00:30]} 34. Nf2 {[%emt 0:09:30]} Qg3 {[%emt 0:09:30]} 35. Kf1 {[%emt 0:00:30]} Rh2 {[%emt 0:00:30]} 36. Bc4 {[%emt 0:09:09]} Nf4 {[%emt 0:00:30]} 37. Nc3 {[%emt 0:07:14]} Rc8 {[%emt 0:02:30]} 38. Bd3 {[%emt 0:00:19]} Bh6 {[%emt 0:01:30]} 39. a6 {[%emt 0:03:51]} bxa6 {[%emt 0:00:30]} 40. Bxa6 {[%emt 0:02:41]} Qg2+ {[%emt 0:00:30]} 41. Ke1 {[%emt 0:00:06]} Qg1+ {[%emt 0:00:30]} 42. Bf1 {[%emt 0:00:06]} Ng2+ {[%emt 0:00:30]} 43. Ke2 {[%emt 0:00:28]} Ne3 {[%emt 0:00:00]} 0-1

[Event "4th Baskent University Open 2019"]
[Site "Ankara"]
[Date "2019.06.19"]
[Round "4"]
[White "Sumer, Gun"]
[Black "Olcum, Ahmet"]
[Result "0-1"]
[ECO "C41"]
[WhiteElo "1969"]
[BlackElo "2315"]
[Annotator "NA"]
[PlyCount "96"]
[EventDate "2019.06.18"]
[EventType "swiss"]
[EventCountry "TUR"]
[SourceTitle "playchess.com"]
[Source "ChessBase"]
[SourceQuality "1"]
[TimeControl "5400+30"]

1. e4 {[%emt 0:06:30]} d6 {[%emt 0:00:30]} 2. d4 {[%emt 0:00:30]} Nf6 {[%emt 0:00:30]} 3. Nc3 {[%emt 0:00:30]} e5 {[%emt 0:00:30]} 4. Nf3 {[%emt 0:02:30]} Nbd7 {[%emt 0:00:00]} 5. Bc4 {[%emt 0:00:30]} Be7 {[%emt 0:00:00]} 6. O-O {[%emt 0:01:30]} c6 {[%emt 0:00:30]} 7. a4 {[%emt 0:00:30]} h6 {[%emt 0:00:30]} 8. Re1 {[%emt 0:02:30]} Qc7 {[%emt 0:00:00]} 9. b3 {[%emt 0:03:30]} Nf8 {[%emt 0:02:00]} 10. a5 {[%emt 0:20:30]} Bg4 {[%emt 0:10:30]} 11. Be3 {[%emt 0:02:30]} Ng6 {[%emt 0:02:30]} 12. Be2 {[%emt 0:01:30]} O-O {[%emt 0:04:30]} 13. h3 {[%emt 0:08:30]} Be6 {[%emt 0:09:30]} 14. Qd3 {[%emt 0:03:30]} Rfd8 {[%emt 0:07:30]} 15. d5 {[%emt 0:04:30]} cxd5 {[%emt 0:00:30]} 16. exd5 {[%emt 0:00:00]} Bd7 {[%emt 0:00:30]} 17. Nd2 {[%emt 0:01:00]} Rdc8 {[%emt 0:05:30]} 18. Nc4 {[%emt 0:00:30]} Nh7 {[%emt 0:03:30]} 19. Bg4 {[%emt 0:02:30]} Rf8 {[%emt 0:17:30]} 20. Bxd7 {[%emt 0:05:30]} Qxd7 {[%emt 0:00:30]} 21. Ne2 {[%emt 0:01:30]} f5 {[%emt 0:11:30]} 22. f4 {[%emt 0:00:30]} Bf6 {[%emt 0:02:49]} 23. Rad1 {[%emt 0:00:30]} Kh8 {[%emt 0:04:56]} 24. Rf1 {[%emt 0:01:30]} Ne7 {[%emt 0:04:45]} 25. Qd2 {[%emt 0:05:30]} g5 {[%emt 0:02:26]} 26. fxe5 {[%emt 0:05:24]} dxe5 {[%emt 0:00:21]} 27. Bc5 {[%emt 0:00:06]} f4 {[%emt 0:05:39]} 28. Nc3 {[%emt 0:01:55]} Bg7 {[%emt 0:02:42]} 29. Qe2 {[%emt 0:03:41]} Rfe8 {[%emt 0:01:40]} 30. Nxe5 {[%emt 0:09:26]} Qc7 {[%emt 0:00:37]} 31. Bd4 {[%emt 0:00:28]} Nf5 {[%emt 0:00:15]} 32. d6 {[%emt 0:04:46]} Nxd6 {[%emt 0:00:36]} 33. Nd5 {[%emt 0:01:14]} Qxa5 {[%emt 0:00:34]} 34. Ng6+ {[%emt 0:00:54]} Kg8 {[%emt 0:00:01]} 35. Nde7+ {[%emt 0:00:12]} Kf7 {[%emt 0:00:11]} 36. Bxg7 {[%emt 0:00:00]} Kxg7 {[%emt 0:01:07]} 37. Rxd6 {[%emt 0:00:00]} Qc5+ {[%emt 0:00:36]} 38. Kh1 {[%emt 0:00:00]} Qxd6 {[%emt 0:00:00]} 39. Nf5+ {[%emt 0:00:04]} Kxg6 {[%emt 0:00:19]} 40. Qxe8+ {[%emt 0:00:15]} Rxe8 {[%emt 0:00:15]} 41. Nxd6 {[%emt 0:00:05]} Re7 {[%emt 0:00:57]} 42. Nc8 {[%emt 0:01:10]} Rc7 {[%emt 0:00:33]} 43. Nxa7 {[%emt 0:00:05]} Rxc2 {[%emt 0:00:09]} 44. Rd1 {[%emt 0:00:07]} Nf6 {[%emt 0:00:11]} 45. Nb5 {[%emt 0:00:11]} Rb2 {[%emt 0:00:47]} 46. Nd4 {[%emt 0:00:14]} Ne4 {[%emt 0:00:32]} 47. Rc1 {[%emt 0:01:05]} Ng3+ {[%emt 0:00:54]} 48. Kg1 {[%emt 0:00:31]} Rd2 {[%emt 0:00:11]} 0-1

[Event "4th Baskent University Open 2019"]
[Site "Ankara"]
[Date "2019.06.19"]
[Round "4"]
[White "Ibik, Halit Yavuz"]
[Black "Guven, Oguz Kagan"]
[Result "0-1"]
[ECO "B53"]
[WhiteElo "1942"]
[BlackElo "2095"]
[Annotator "NA"]
[PlyCount "72"]
[EventDate "2019.06.18"]
[EventType "swiss"]
[EventCountry "TUR"]
[SourceTitle "playchess.com"]
[Source "ChessBase"]
[SourceQuality "1"]
[TimeControl "5400+30"]

1. e4 {[%emt 0:12:30]} c5 {[%emt 0:00:30]} 2. Nf3 {[%emt 0:01:30]} d6 {[%emt 0:00:30]} 3. d4 {[%emt 0:00:30]} cxd4 {[%emt 0:00:00]} 4. Qxd4 {[%emt 0:00:00]} Nc6 {[%emt 0:00:00]} 5. Bb5 {[%emt 0:00:00]} Bd7 {[%emt 0:00:00]} 6. Bxc6 {[%emt 0:00:00]} Bxc6 {[%emt 0:00:00]} 7. Nc3 {[%emt 0:00:00]} h6 {[%emt 0:00:00]} 8. Qd3 {[%emt 0:00:30]} Nf6 {[%emt 0:00:00]} 9. Nd4 {[%emt 0:00:30]} e6 {[%emt 0:03:30]} 10. Bd2 {[%emt 0:05:30]} Be7 {[%emt 0:00:30]} 11. O-O-O {[%emt 0:01:30]} Rc8 {[%emt 0:01:30]} 12. f4 {[%emt 0:01:30]} Nd7 {[%emt 0:08:30]} 13. f5 {[%emt 0:27:30]} e5 {[%emt 0:02:30]} 14. Nb3 {[%emt 0:01:30]} a5 {[%emt 0:04:30]} 15. Be3 {[%emt 0:00:30]} O-O {[%emt 0:12:30]} 16. Nd2 {[%emt 0:12:30]} Qc7 {[%emt 0:01:30]} 17. Kb1 {[%emt 0:00:30]} b5 {[%emt 0:00:30]} 18. g4 {[%emt 0:01:30]} b4 {[%emt 0:00:30]} 19. Nd5 {[%emt 0:00:30]} Bxd5 {[%emt 0:00:30]} 20. exd5 {[%emt 0:00:30]} Rfe8 {[%emt 0:30:30]} 21. Ne4 {[%emt 0:08:30]} Nf6 {[%emt 0:02:30]} 22. g5 {[%emt 0:09:13]} Nxe4 {[%emt 0:00:30]} 23. Qxe4 {[%emt 0:00:01]} Bxg5 {[%emt 0:02:30]} 24. Bxg5 {[%emt 0:00:30]} hxg5 {[%emt 0:00:00]} 25. f6 {[%emt 0:00:54]} Qc4 {[%emt 0:00:00]} 26. Qg2 {[%emt 0:01:40]} Qh4 {[%emt 0:00:30]} 27. Rd3 {[%emt 0:02:26]} Rc4 {[%emt 0:05:30]} 28. Rg1 {[%emt 0:03:01]} gxf6 {[%emt 0:00:30]} 29. Rh3 {[%emt 0:03:33]} Qe4 {[%emt 0:00:30]} 30. Qf2 {[%emt 0:00:10]} Rec8 {[%emt 0:03:30]} 31. Rh8+ {[%emt 0:05:05]} Kxh8 {[%emt 0:00:00]} 32. Qxf6+ {[%emt 0:01:20]} Kh7 {[%emt 0:00:00]} 33. Qxf7+ {[%emt 0:00:20]} Kh6 {[%emt 0:00:00]} 34. Qe6+ {[%emt 0:00:37]} Qg6 {[%emt 0:01:00]} 35. Qh3+ {[%emt 0:00:34]} Kg7 {[%emt 0:00:30]} 36. Qd7+ {[%emt 0:00:31]} Kg8 {[%emt 0:00:30]} 0-1

[Event "4th Baskent University Open 2019"]
[Site "Ankara"]
[Date "2019.06.19"]
[Round "4"]
[White "Sakalli, Mustafa"]
[Black "Mohannad, Farhan"]
[Result "0-1"]
[ECO "A26"]
[WhiteElo "1916"]
[BlackElo "2193"]
[Annotator "NA"]
[PlyCount "80"]
[EventDate "2019.06.18"]
[EventType "swiss"]
[EventCountry "TUR"]
[SourceTitle "playchess.com"]
[Source "ChessBase"]
[SourceQuality "1"]
[TimeControl "5400+30"]

1. c4 {[%emt 0:00:30]} e5 {[%emt 0:00:30]} 2. Nc3 {[%emt 0:00:30]} d6 {[%emt 0:00:00]} 3. g3 {[%emt 0:01:30]} g6 {[%emt 0:00:00]} 4. Bg2 {[%emt 0:00:00]} Bg7 {[%emt 0:00:30]} 5. Nf3 {[%emt 0:03:00]} Nc6 {[%emt 0:01:30]} 6. O-O {[%emt 0:00:30]} f5 {[%emt 0:00:30]} 7. d3 {[%emt 0:00:00]} Nf6 {[%emt 0:00:30]} 8. Rb1 {[%emt 0:00:00]} a5 {[%emt 0:00:00]} 9. a3 {[%emt 0:00:00]} O-O {[%emt 0:00:00]} 10. b4 {[%emt 0:02:00]} axb4 {[%emt 0:00:30]} 11. axb4 {[%emt 0:00:00]} h6 {[%emt 0:00:30]} 12. Bd2 {[%emt 0:00:00]} g5 {[%emt 0:00:30]} 13. e3 {[%emt 0:03:30]} Ne7 {[%emt 0:00:30]} 14. Qc2 {[%emt 0:01:30]} Ng6 {[%emt 0:01:30]} 15. Ra1 {[%emt 0:05:30]} Be6 {[%emt 0:04:30]} 16. b5 {[%emt 0:05:30]} Qd7 {[%emt 0:02:30]} 17. Rfb1 {[%emt 0:09:30]} d5 {[%emt 0:19:30]} 18. cxd5 {[%emt 0:02:30]} Nxd5 {[%emt 0:00:30]} 19. Ne1 {[%emt 0:14:30]} Nge7 {[%emt 0:11:30]} 20. e4 {[%emt 0:08:30]} Nxc3 {[%emt 0:06:30]} 21. Bxc3 {[%emt 0:02:30]} f4 {[%emt 0:00:00]} 22. Qb2 {[%emt 0:01:30]} Rxa1 {[%emt 0:02:00]} 23. Rxa1 {[%emt 0:00:00]} Ng6 {[%emt 0:03:30]} 24. b6 {[%emt 0:01:00]} c5 {[%emt 0:05:30]} 25. Ra7 {[%emt 0:05:30]} Rf7 {[%emt 0:00:30]} 26. Ra5 {[%emt 0:01:30]} c4 {[%emt 0:03:30]} 27. Bf1 {[%emt 0:00:30]} f3 {[%emt 0:12:30]} 28. dxc4 {[%emt 0:02:30]} Qc6 {[%emt 0:00:30]} 29. Rd5 {[%emt 0:00:30]} Bxd5 {[%emt 0:01:30]} 30. cxd5 {[%emt 0:00:30]} Qa4 {[%emt 0:05:47]} 31. Bb5 {[%emt 0:02:30]} Qd1 {[%emt 0:03:01]} 32. Qc2 {[%emt 0:01:30]} Qxc2 {[%emt 0:01:51]} 33. Nxc2 {[%emt 0:00:30]} Rf6 {[%emt 0:01:00]} 34. Ba5 {[%emt 0:00:30]} Bf8 {[%emt 0:01:15]} 35. Bd7 {[%emt 0:01:30]} Bc5 {[%emt 0:00:48]} 36. Be6+ {[%emt 0:00:30]} Kg7 {[%emt 0:00:09]} 37. Ne3 {[%emt 0:01:30]} Bxe3 {[%emt 0:04:48]} 38. fxe3 {[%emt 0:00:30]} Rxe6 {[%emt 0:00:30]} 39. dxe6 {[%emt 0:00:30]} g4 {[%emt 0:00:07]} 40. h4 {[%emt 0:00:30]} h5 {[%emt 0:00:04]} 0-1

[Event "4th Baskent University Open 2019"]
[Site "Ankara"]
[Date "2019.06.19"]
[Round "4"]
[White "Sariali, Furkan Anil"]
[Black "Ozen, Sadettin Alperen"]
[Result "1-0"]
[ECO "A05"]
[WhiteElo "1749"]
[BlackElo "1554"]
[Annotator "NA"]
[PlyCount "118"]
[EventDate "2019.06.18"]
[EventType "swiss"]
[EventCountry "TUR"]
[SourceTitle "playchess.com"]
[Source "ChessBase"]
[SourceQuality "1"]
[TimeControl "5400+30"]

1. Nf3 {[%emt 0:00:30]} Nf6 {[%emt 0:01:30]} 2. g3 {[%emt 0:00:30]} g6 {[%emt 0:00:30]} 3. b3 {[%emt 0:00:30]} Bg7 {[%emt 0:03:30]} 4. Bb2 {[%emt 0:00:30]} d5 {[%emt 0:00:30]} 5. Bg2 {[%emt 0:00:00]} c5 {[%emt 0:00:00]} 6. d4 {[%emt 0:02:00]} Ne4 {[%emt 0:01:00]} 7. O-O {[%emt 0:00:30]} Nc6 {[%emt 0:05:30]} 8. e3 {[%emt 0:01:30]} Bg4 {[%emt 0:21:30]} 9. h3 {[%emt 0:03:30]} Bxf3 {[%emt 0:01:30]} 10. Bxf3 {[%emt 0:00:30]} cxd4 {[%emt 0:00:30]} 11. exd4 {[%emt 0:00:30]} Qb6 {[%emt 0:00:30]} 12. c3 {[%emt 0:01:30]} O-O {[%emt 0:00:30]} 13. Nd2 {[%emt 0:01:30]} f5 {[%emt 0:02:30]} 14. Nxe4 {[%emt 0:09:30]} fxe4 {[%emt 0:00:00]} 15. Bg2 {[%emt 0:00:30]} Qc7 {[%emt 0:09:00]} 16. Qd2 {[%emt 0:08:30]} e6 {[%emt 0:02:30]} 17. Kh2 {[%emt 0:01:30]} Ne7 {[%emt 0:04:30]} 18. Ba3 {[%emt 0:00:30]} Nf5 {[%emt 0:05:30]} 19. Bxf8 {[%emt 0:02:30]} Rxf8 {[%emt 0:00:30]} 20. f4 {[%emt 0:03:30]} Bh6 {[%emt 0:05:30]} 21. Rae1 {[%emt 0:01:30]} g5 {[%emt 0:01:30]} 22. Kg1 {[%emt 0:12:30]} Nxg3 {[%emt 0:00:30]} 23. fxg5 {[%emt 0:01:30]} Nxf1 {[%emt 0:01:30]} 24. Rxf1 {[%emt 0:00:30]} Rxf1+ {[%emt 0:00:00]} 25. Kxf1 {[%emt 0:00:00]} Bg7 {[%emt 0:01:00]} 26. Qe3 {[%emt 0:04:00]} e5 {[%emt 0:00:30]} 27. dxe5 {[%emt 0:05:30]} Bxe5 {[%emt 0:01:30]} 28. c4 {[%emt 0:04:30]} dxc4 {[%emt 0:01:30]} 29. Bxe4 {[%emt 0:02:30]} c3 {[%emt 0:10:36]} 30. Qd3 {[%emt 0:00:30]} Qe7 {[%emt 0:03:22]} 31. Bd5+ {[%emt 0:01:30]} Kg7 {[%emt 0:05:04]} 32. Qf5 {[%emt 0:00:30]} Qf8 {[%emt 0:00:18]} 33. Qxf8+ {[%emt 0:00:30]} Kxf8 {[%emt 0:00:04]} 34. Ke2 {[%emt 0:00:30]} Kg7 {[%emt 0:00:04]} 35. Bxb7 {[%emt 0:00:30]} Bf4 {[%emt 0:00:48]} 36. Kd3 {[%emt 0:00:30]} Bxg5 {[%emt 0:00:00]} 37. Kxc3 {[%emt 0:00:00]} Kf6 {[%emt 0:00:00]} 38. Kc4 {[%emt 0:00:00]} Ke5 {[%emt 0:00:24]} 39. a4 {[%emt 0:01:30]} Kf4 {[%emt 0:00:12]} 40. a5 {[%emt 0:00:30]} Kg3 {[%emt 0:00:30]} 41. Bc8 {[%emt 0:00:00]} h5 {[%emt 0:00:08]} 42. b4 {[%emt 0:01:00]} Be3 {[%emt 0:00:19]} 43. b5 {[%emt 0:01:30]} Kf4 {[%emt 0:00:06]} 44. Kd5 {[%emt 0:01:30]} Kg5 {[%emt 0:00:12]} 45. Kc6 {[%emt 0:00:00]} h4 {[%emt 0:00:08]} 46. b6 {[%emt 0:01:00]} Bxb6 {[%emt 0:00:30]} 47. axb6 {[%emt 0:00:30]} axb6 {[%emt 0:00:30]} 48. Kxb6 {[%emt 0:00:30]} Kh6 {[%emt 0:00:30]} 49. Kc5 {[%emt 0:00:30]} Kg7 {[%emt 0:00:30]} 50. Kd5 {[%emt 0:00:30]} Kh8 {[%emt 0:00:30]} 51. Ke5 {[%emt 0:00:30]} Kg7 {[%emt 0:00:30]} 52. Kf5 {[%emt 0:00:30]} Kh8 {[%emt 0:00:30]} 53. Kg4 {[%emt 0:00:30]} Kg7 {[%emt 0:00:30]} 54. Kxh4 {[%emt 0:00:30]} Kh8 {[%emt 0:00:00]} 55. Kh5 {[%emt 0:00:00]} Kh7 {[%emt 0:00:00]} 56. Bf5+ {[%emt 0:00:00]} Kg7 {[%emt 0:00:00]} 57. Kg5 {[%emt 0:00:00]} Kh8 {[%emt 0:00:00]} 58. h4 {[%emt 0:00:00]} Kg7 {[%emt 0:00:00]} 59. h5 {[%emt 0:00:00]} Kh8 {[%emt 0:00:00]} 1-0

[Event "4th Baskent University Open 2019"]
[Site "Ankara"]
[Date "2019.06.19"]
[Round "4"]
[White "Ozbag, Berat"]
[Black "Kurt, Murat"]
[Result "1-0"]
[ECO "B18"]
[WhiteElo "1666"]
[BlackElo "1559"]
[Annotator "NA"]
[PlyCount "71"]
[EventDate "2019.06.18"]
[EventType "swiss"]
[EventCountry "TUR"]
[SourceTitle "playchess.com"]
[Source "ChessBase"]
[SourceQuality "1"]
[TimeControl "5400+30"]

1. e4 {[%emt 0:03:30]} c6 {[%emt 0:00:30]} 2. d4 {[%emt 0:00:30]} d5 {[%emt 0:00:00]} 3. Nd2 {[%emt 0:00:00]} dxe4 {[%emt 0:00:00]} 4. Nxe4 {[%emt 0:00:00]} Bf5 {[%emt 0:00:30]} 5. Ng3 {[%emt 0:00:30]} Bg6 {[%emt 0:00:30]} 6. h4 {[%emt 0:01:30]} h6 {[%emt 0:00:00]} 7. N1e2 {[%emt 0:03:30]} Nf6 {[%emt 0:06:00]} 8. Nf4 {[%emt 0:10:30]} Bh7 {[%emt 0:02:30]} 9. Bc4 {[%emt 0:01:30]} Nd5 {[%emt 0:07:30]} 10. Qe2 {[%emt 0:03:30]} Nxf4 {[%emt 0:01:30]} 11. Bxf4 {[%emt 0:00:30]} e6 {[%emt 0:01:30]} 12. O-O-O {[%emt 0:02:30]} Be7 {[%emt 0:00:30]} 13. Nh5 {[%emt 0:03:30]} Bf6 {[%emt 0:11:30]} 14. Qg4 {[%emt 0:09:30]} Kf8 {[%emt 0:06:30]} 15. Be5 {[%emt 0:12:30]} Bg6 {[%emt 0:01:30]} 16. Nxf6 {[%emt 0:04:30]} gxf6 {[%emt 0:00:30]} 17. Bf4 {[%emt 0:00:30]} h5 {[%emt 0:02:30]} 18. Qg3 {[%emt 0:05:30]} Kg7 {[%emt 0:01:30]} 19. Qe3 {[%emt 0:04:30]} Nd7 {[%emt 0:00:30]} 20. g4 {[%emt 0:01:30]} Nb6 {[%emt 0:05:30]} 21. Be2 {[%emt 0:01:30]} Nd5 {[%emt 0:01:30]} 22. Qg3 {[%emt 0:01:30]} Nxf4 {[%emt 0:01:30]} 23. Qxf4 {[%emt 0:00:30]} Qd5 {[%emt 0:13:30]} 24. gxh5 {[%emt 0:00:30]} Qe4 {[%emt 0:01:30]} 25. Qd2 {[%emt 0:00:30]} Bxh5 {[%emt 0:00:30]} 26. Rhg1+ {[%emt 0:03:30]} Bg6 {[%emt 0:05:30]} 27. h5 {[%emt 0:00:30]} Qd5 {[%emt 0:01:30]} 28. hxg6 {[%emt 0:01:30]} fxg6 {[%emt 0:00:30]} 29. Qd3 {[%emt 0:00:30]} f5 {[%emt 0:00:30]} 30. Qg3 {[%emt 0:02:30]} Rh6 {[%emt 0:02:30]} 31. b3 {[%emt 0:00:30]} Qa5 {[%emt 0:01:30]} 32. Kb1 {[%emt 0:03:11]} Rah8 {[%emt 0:04:30]} 33. Bc4 {[%emt 0:00:25]} b5 {[%emt 0:05:24]} 34. Qe5+ {[%emt 0:00:38]} Kh7 {[%emt 0:00:18]} 35. Qxe6 {[%emt 0:01:02]} Qc7 {[%emt 0:00:44]} 36. Bd3 {[%emt 0:00:31]} 1-0

[Event "4th Baskent University Open 2019"]
[Site "Ankara"]
[Date "2019.06.19"]
[Round "4"]
[White "Taban, Yagiz"]
[Black "Gultekin, Celal"]
[Result "1-0"]
[ECO "A06"]
[WhiteElo "1654"]
[BlackElo "1533"]
[Annotator "NA"]
[PlyCount "105"]
[EventDate "2019.06.18"]
[EventType "swiss"]
[EventCountry "TUR"]
[SourceTitle "playchess.com"]
[Source "ChessBase"]
[SourceQuality "1"]
[TimeControl "5400+30"]

1. Nf3 {[%emt 0:00:30]} d5 {[%emt 0:00:30]} 2. b3 {[%emt 0:00:30]} Nf6 {[%emt 0:00:30]} 3. Bb2 {[%emt 0:00:00]} g6 {[%emt 0:01:30]} 4. g3 {[%emt 0:06:00]} Bg7 {[%emt 0:00:30]} 5. d3 {[%emt 0:00:30]} O-O {[%emt 0:00:30]} 6. Nbd2 {[%emt 0:01:30]} c5 {[%emt 0:02:30]} 7. Bg2 {[%emt 0:02:30]} Nc6 {[%emt 0:00:30]} 8. e4 {[%emt 0:01:30]} d4 {[%emt 0:10:30]} 9. a4 {[%emt 0:07:30]} e5 {[%emt 0:01:30]} 10. Nc4 {[%emt 0:03:30]} Ne8 {[%emt 0:05:30]} 11. O-O {[%emt 0:02:30]} Nd6 {[%emt 0:10:30]} 12. Ba3 {[%emt 0:01:30]} Nxc4 {[%emt 0:00:30]} 13. dxc4 {[%emt 0:00:00]} b6 {[%emt 0:04:30]} 14. Ne1 {[%emt 0:01:00]} a5 {[%emt 0:01:30]} 15. Nd3 {[%emt 0:01:30]} Ra7 {[%emt 0:00:30]} 16. f4 {[%emt 0:06:30]} f6 {[%emt 0:15:30]} 17. Bc1 {[%emt 0:09:30]} Nb4 {[%emt 0:04:30]} 18. Bd2 {[%emt 0:04:30]} Nxd3 {[%emt 0:07:30]} 19. cxd3 {[%emt 0:00:30]} Raf7 {[%emt 0:04:30]} 20. f5 {[%emt 0:05:30]} gxf5 {[%emt 0:07:07]} 21. Qh5 {[%emt 0:02:30]} Qe8 {[%emt 0:10:06]} 22. exf5 {[%emt 0:05:30]} Bb7 {[%emt 0:01:01]} 23. Rae1 {[%emt 0:01:30]} Re7 {[%emt 0:05:51]} 24. Qxe8 {[%emt 0:07:30]} Rfxe8 {[%emt 0:00:30]} 25. Bxb7 {[%emt 0:00:00]} Rxb7 {[%emt 0:00:00]} 26. Re4 {[%emt 0:00:00]} Bf8 {[%emt 0:00:35]} 27. Rfe1 {[%emt 0:03:30]} Ree7 {[%emt 0:00:23]} 28. Kf2 {[%emt 0:02:30]} h5 {[%emt 0:00:12]} 29. h3 {[%emt 0:00:30]} Rh7 {[%emt 0:00:20]} 30. Rh4 {[%emt 0:01:30]} Rbg7 {[%emt 0:00:41]} 31. Rh1 {[%emt 0:02:30]} Bd6 {[%emt 0:00:16]} 32. g4 {[%emt 0:02:03]} hxg4 {[%emt 0:02:30]} 33. hxg4 {[%emt 0:00:18]} Rxh4 {[%emt 0:02:09]} 34. Rxh4 {[%emt 0:00:09]} Rh7 {[%emt 0:00:47]} 35. Rxh7 {[%emt 0:00:30]} Kxh7 {[%emt 0:00:30]} 36. g5 {[%emt 0:00:39]} fxg5 {[%emt 0:00:01]} 37. Bxg5 {[%emt 0:00:21]} Kg7 {[%emt 0:01:22]} 38. Kf3 {[%emt 0:01:17]} Kf7 {[%emt 0:00:07]} 39. Bd8 {[%emt 0:00:00]} Be7 {[%emt 0:01:15]} 40. Bxb6 {[%emt 0:00:13]} Kf6 {[%emt 0:00:07]} 41. Ke4 {[%emt 0:00:30]} Bf8 {[%emt 0:00:39]} 42. Bxa5 {[%emt 0:00:00]} Bd6 {[%emt 0:00:00]} 43. Bd8+ {[%emt 0:00:00]} Kf7 {[%emt 0:00:35]} 44. Kd5 {[%emt 0:00:30]} Bb8 {[%emt 0:00:06]} 45. Kxc5 {[%emt 0:00:00]} Ke8 {[%emt 0:00:38]} 46. Bb6 {[%emt 0:00:00]} Ke7 {[%emt 0:00:34]} 47. a5 {[%emt 0:00:30]} Kf6 {[%emt 0:00:37]} 48. a6 {[%emt 0:00:00]} Kxf5 {[%emt 0:00:52]} 49. a7 {[%emt 0:00:00]} Bxa7 {[%emt 0:00:55]} 50. Bxa7 {[%emt 0:00:00]} Kf4 {[%emt 0:00:11]} 51. Kd5 {[%emt 0:00:00]} e4 {[%emt 0:00:07]} 52. Bxd4 {[%emt 0:00:30]} exd3 {[%emt 0:00:17]} 53. Bc3 {[%emt 0:00:30]} 1-0